bitfinex/quotes_SOLUSD_20251103
["timestamp","ask_amount","ask_price","bid_price","bid_amount"]
[1762149978219,0.2,177.48,177.47,4.00130981]
[1762149978396,0.2,177.48,177.47,66.6478343]
[1762149978602,0.2,177.48,177.47,62.5]
[1762149978812,0.2,177.48,177.47,66.6478343]
[1762149979820,0.2,177.48,177.47,67.21130981]
[1762149980424,0.2,177.48,177.47,72.84606497]
[1762149983029,0.2,177.48,177.47,66.6478343]
[1762149983229,0.2,177.48,177.47,65.9378343]
[1762149983427,0.2,177.48,177.47,62.5]
[1762149983804,0.92,177.48,177.45,3.4378343]
[1762149984227,0.2,177.48,177.45,3.4378343]
[1762149985410,0.2,177.48,177.46,4.1078343]
[1762149985813,0.2,177.48,177.47,0.67]
[1762149986017,3.97087861,177.48,177.47,0.67]
[1762149986219,3.97087861,177.48,177.45,4.1078343]
[1762149986422,0.2,177.48,177.45,4.1078343]
[1762149986632,0.2,177.48,177.46,0.67]
[1762149988642,0.2,177.48,177.43,6.19956413]
[1762149988818,0.9,177.48,177.43,4.67143684]
[1762149989035,0.9,177.48,177.44,0.67]
[1762149990116,0.2,177.48,177.44,4.1078343]
[1762149990321,0.2,177.48,177.45,3.4378343]
[1762149990649,0.2,177.48,177.45,10.30674993]
[1762149990826,0.2,177.48,177.46,0.67]
[1762149991212,0.2,177.48,177.46,4.1078343]
[1762149991639,0.2,177.48,177.47,0.67]
[1762149991809,0.2,177.48,177.47,4.1078343]
[1762149992014,0.2,177.48,177.47,4.67130981]
[1762149992822,0.2,177.48,177.45,0.56353902]
[1762149993036,0.2,177.48,177.45,3.4378343]
[1762149993331,0.2,177.48,177.45,4.1078343]
[1762149993539,0.2,177.48,177.45,0.67]
[1762149995054,0.9,177.48,177.44,24.0298343]
[1762149995216,0.9,177.48,177.44,21.262]
[1762149995416,0.2,177.48,177.44,20.592]
[1762149995640,0.2,177.48,177.45,0.67]
[1762149996023,0.2,177.48,177.44,24.0298343]
[1762149996247,0.2,177.48,177.44,24.7298343]
[1762149996424,0.2,177.48,177.44,24.0298343]
[1762149996622,0.2,177.48,177.45,0.7]
[1762149996842,0.2,177.48,177.45,63.2]
[1762149997141,0.2,177.48,177.45,62.5]
[1762149997331,0.2,177.48,177.45,63.2]
[1762149997513,0.2,177.48,177.45,62.5]
[1762149997714,3.7722651,177.47,177.45,62.5]
[1762149997930,7.20988892,177.46,177.41,63.2]
[1762149998129,3.4378343,177.45,177.41,62.5]
[1762149998516,3.7713899,177.44,177.41,62.5]
[1762149998714,3.4378343,177.42,177.36,3.4378343]
[1762149998913,3.4378343,177.4,177.36,0.7]
[1762149999143,3.4378343,177.39,177.36,0.7]
[1762149999346,3.4378343,177.39,177.34,4.1378343]
[1762149999545,3.4378343,177.39,177.35,0.7]
[1762149999739,4.71411064,177.44,177.35,0.7]
[1762150000024,3.4378343,177.39,177.35,0.7]
[1762150000312,2.20112146,177.39,177.35,0.7]
[1762150002118,2.20112146,177.4,177.35,8.53957816]
[1762150002449,0.7,177.41,177.35,0.7]
[1762150002450,2.20112146,177.39,177.35,0.7]
[1762150004659,2.90112146,177.39,177.35,0.7]
[1762150005028,2.20112146,177.39,177.35,0.7]
[1762150005229,2.20112146,177.4,177.35,0.7]
[1762150005524,2.20112146,177.39,177.35,63.2]
[1762150005729,2.20112146,177.39,177.35,62.5]
[1762150005943,0.7,177.38,177.35,62.5]
[1762150006323,2.90112146,177.38,177.35,62.5]
[1762150006740,2.20112146,177.38,177.35,62.5]
[1762150006942,2.20112146,177.38,177.35,63.2]
[1762150011045,2.20112146,177.38,177.35,62.5]
[1762150011240,2.90112146,177.38,177.35,62.5]
[1762150011448,2.20112146,177.38,177.35,62.5]
[1762150012934,2.20112146,177.42,177.37,2.20112146]
[1762150013137,2.20112146,177.42,177.38,0.7]
[1762150013453,2.90112146,177.42,177.38,0.7]
[1762150013759,2.20112146,177.42,177.38,0.7]
[1762150014654,2.20112146,177.42,177.38,63.2]
[1762150015743,2.20112146,177.42,177.39,0.7]
[1762150015942,2.20112146,177.42,177.39,63.2]
[1762150017054,2.20112146,177.43,177.39,63.2]
[1762150017229,2.90112146,177.43,177.39,63.2]
[1762150017938,2.20112146,177.43,177.4,0.7]
[1762150018254,2.20112146,177.41,177.34,20.592]
[1762150018460,2.20112146,177.35,177.31,79.32512709]
[1762150018755,2.20112146,177.35,177.32,0.7]
[1762150019136,2.20112146,177.36,177.32,6.33948603]
[1762150019342,2.20112146,177.37,177.32,8.54060749]
[1762150019542,2.20112146,177.37,177.33,0.7]
[1762150020458,2.20112146,177.36,177.33,0.7]
[1762150021945,2.90112146,177.35,177.31,68.13978542]
[1762150022147,2.90112146,177.35,177.31,5.63978542]
[1762150022460,2.90112146,177.35,177.31,3.74960453]
[1762150022759,2.20112146,177.33,177.31,0.7]
[1762150022961,2.20112146,177.34,177.31,0.7]
[1762150023260,2.20112146,177.36,177.31,0.7]
[1762150023563,2.20112146,177.36,177.31,63.2]
[1762150023765,2.20112146,177.36,177.32,0.7]
[1762150024433,2.20112146,177.35,177.32,0.7]
[1762150025562,3.74971859,177.39,177.32,0.7]
[1762150025735,6.20687441,177.47,177.32,0.7]
[1762150025736,2.20112146,177.41,177.36,2.20112146]
[1762150025942,2.20112146,177.4,177.36,62.5]
[1762150026154,2.20112146,177.4,177.36,63.17]
[1762150026355,0.71,177.42,177.37,0.67]
[1762150026588,2.20112146,177.41,177.37,0.67]
[1762150026746,2.91112146,177.42,177.37,0.67]
[1762150027139,2.20112146,177.41,177.37,0.67]
[1762150027766,2.20112146,177.43,177.37,71.00903182]
[1762150027962,0.71,177.46,177.4,2.20112146]
[1762150028162,2.20112146,177.44,177.38,80.41517963]
[1762150028354,2.20112146,177.43,177.38,80.41517963]
[1762150028554,2.20112146,177.43,177.39,0.67]
[1762150028867,2.20112146,177.44,177.39,0.67]
[1762150029249,2.20112146,177.43,177.39,0.67]
[1762150029561,2.20112146,177.42,177.39,0.67]
[1762150029760,2.20112146,177.4,177.38,14.48029676]
[1762150029966,2.20112146,177.39,177.37,62.5]
[1762150032764,2.20112146,177.4,177.37,62.5]
[1762150033562,2.20112146,177.39,177.37,62.5]
[1762150034048,2.20112146,177.4,177.37,62.5]
[1762150034965,2.20112146,177.41,177.38,0.67]
[1762150036269,2.20112146,177.42,177.38,0.67]
[1762150036645,2.20112146,177.41,177.38,0.67]
[1762150037274,2.20112146,177.46,177.4,2.20112146]
[1762150037449,3.75740645,177.45,177.41,2.20112146]
[1762150037639,2.91112146,177.47,177.41,2.20112146]
[1762150037950,3.75772562,177.46,177.41,2.20112146]
[1762150038162,3.75854073,177.45,177.42,0.67]
[1762150038363,2.40112146,177.48,177.42,65.37112146]
[1762150038554,3.75758056,177.47,177.42,65.37112146]
[1762150038752,3.75758056,177.46,177.42,64.70112146]
[1762150039043,2.20112146,177.47,177.43,0.67]
[1762150039347,3.75872887,177.46,177.43,0.67]
[1762150039559,2.20112146,177.47,177.43,0.67]
[1762150039747,3.75829038,177.46,177.43,0.67]
[1762150039951,2.20112146,177.47,177.43,0.67]
[1762150040161,3.75840712,177.46,177.43,0.67]
[1762150040351,2.20112146,177.47,177.43,0.67]
[1762150040573,3.75958686,177.46,177.43,0.67]
[1762150040769,2.20112146,177.47,177.43,0.67]
[1762150040972,5.96071111,177.46,177.43,0.67]
[1762150041164,3.76061182,177.45,177.43,0.67]
[1762150041471,5.96141412,177.44,177.4,5.96071111]
[1762150041647,2.20112146,177.41,177.38,62.5]
[1762150041971,2.20112146,177.42,177.39,0.67]
[1762150042173,3.75973073,177.41,177.39,0.67]
[1762150042466,2.20112146,177.42,177.39,0.67]
[1762150043466,2.20112146,177.43,177.39,0.67]
[1762150043974,2.20112146,177.43,177.39,6.3072847]
[1762150044172,2.20112146,177.44,177.39,6.3072847]
[1762150044370,2.20112146,177.44,177.39,7.83840616]
[1762150044555,2.20112146,177.44,177.4,0.67]
[1762150045071,2.20112146,177.45,177.4,0.67]
[1762150045258,2.20112146,177.44,177.4,0.67]
[1762150046276,2.20112146,177.42,177.37,7.83898137]
[1762150046654,2.20112146,177.43,177.38,2.20112146]
[1762150047659,2.20112146,177.43,177.38,7.83868183]
[1762150047866,2.20112146,177.44,177.39,0.72]
[1762150048558,2.86112146,177.44,177.39,0.72]
[1762150049660,2.86112146,177.44,177.39,63.22]
[1762150050059,2.20112146,177.43,177.39,63.22]
[1762150050260,2.20112146,177.43,177.39,62.5]
[1762150050479,2.20112146,177.43,177.4,0.72]
[1762150050779,2.20112146,177.43,177.39,63.22]
[1762150052061,2.20112146,177.43,177.39,62.5]
[1762150052254,2.86112146,177.42,177.39,62.5]
[1762150052657,2.20112146,177.42,177.39,62.5]
[1762150055399,2.20112146,177.43,177.39,62.5]
[1762150055560,2.20112146,177.42,177.39,62.5]
[1762150055880,2.86112146,177.43,177.39,62.5]
[1762150056079,2.20112146,177.42,177.39,62.5]
[1762150056496,2.20112146,177.43,177.39,62.5]
[1762150057157,0.7,177.45,177.39,64.70112146]
[1762150057158,2.20112146,177.45,177.39,64.70112146]
[1762150057359,3.76692725,177.44,177.4,0.72]
[1762150057558,3.76692725,177.43,177.4,0.72]
[1762150057759,2.20112146,177.45,177.4,0.72]
[1762150057981,3.76538286,177.44,177.4,0.72]
[1762150058187,3.76538286,177.43,177.4,0.72]
[1762150058483,2.20112146,177.44,177.4,0.72]
[1762150058669,3.76512196,177.43,177.4,0.72]
[1762150058874,2.20112146,177.44,177.4,0.72]
[1762150059081,5.96600442,177.43,177.4,0.72]
[1762150059281,2.20112146,177.43,177.4,0.72]
[1762150060286,2.20112146,177.42,177.4,0.72]
[1762150060502,2.20112146,177.42,177.39,62.5]
[1762150060680,2.90112146,177.42,177.39,62.5]
[1762150060880,2.20112146,177.41,177.39,62.5]
[1762150063297,3.43832027,177.36,177.33,0.72]
[1762150063496,3.43832027,177.36,177.31,0.72]
[1762150064903,4.13832027,177.36,177.31,0.72]
[1762150065090,3.43832027,177.36,177.31,0.72]
[1762150065298,3.43832027,177.36,177.31,4.15832027]
[1762150065703,3.43832027,177.36,177.32,0.72]
[1762150066082,3.43832027,177.35,177.3,3.43832027]
[1762150066282,3.43832027,177.36,177.31,4.15832027]
[1762150066484,7.20009058,177.38,177.33,3.43832027]
[1762150066686,3.43832027,177.37,177.32,4.15832027]
[1762150067096,3.43832027,177.37,177.33,0.72]
[1762150068385,3.43832027,177.36,177.33,0.72]
[1762150068587,3.43832027,177.36,177.31,3.43832027]
[1762150068588,3.43832027,177.35,177.29,80.02134347]
[1762150068787,3.43832027,177.35,177.3,3.43832027]
[1762150069191,3.43832027,177.35,177.31,0.72]
[1762150070193,3.43832027,177.35,177.31,63.22]
[1762150070520,3.43832027,177.36,177.31,63.22]
[1762150070809,3.43832027,177.36,177.32,0.06]
[1762150071512,0.7,177.38,177.33,3.43832027]
[1762150071513,3.43832027,177.38,177.33,3.43832027]
[1762150071696,3.43832027,177.41,177.35,3.43832027]
[1762150071889,3.76148921,177.4,177.35,3.43832027]
[1762150072106,3.76148921,177.39,177.35,3.43832027]
[1762150072413,3.43832027,177.39,177.34,3.43832027]
[1762150072802,3.43832027,177.38,177.34,0.72]
[1762150073001,3.43832027,177.38,177.35,0.72]
[1762150074217,4.13832027,177.39,177.35,0.72]
[1762150074408,3.43832027,177.39,177.35,0.72]
[1762150074711,0.7,177.41,177.35,0.72]
[1762150074918,7.19118995,177.4,177.35,0.72]
[1762150075115,3.43832027,177.4,177.35,4.15832027]
[1762150075415,3.43832027,177.41,177.35,4.15832027]
[1762150075613,3.43832027,177.4,177.35,3.43832027]
[1762150076114,3.43832027,177.4,177.34,24.03032027]
[1762150077491,3.43832027,177.4,177.34,29.66919278]
[1762150078317,3.43832027,177.4,177.34,20.592]
[1762150078612,3.43832027,177.37,177.34,20.592]
[1762150078823,3.43832027,177.37,177.34,62.5]
[1762150079503,3.43832027,177.38,177.34,62.5]
[1762150080411,4.13832027,177.37,177.34,62.5]
[1762150080712,3.43832027,177.37,177.34,62.5]
[1762150082196,3.43832027,177.35,177.34,62.5]
[1762150082395,3.43832027,177.35,177.3,62.5]
[1762150082595,3.43832027,177.34,177.31,0.72]
[1762150085033,3.43832027,177.39,177.33,3.43832027]
[1762150085225,3.43832027,177.38,177.33,62.5]
[1762150085399,3.43832027,177.38,177.34,0.72]
[1762150087305,3.43832027,177.39,177.34,0.72]
[1762150087515,3.43832027,177.4,177.34,4.15832027]
[1762150087901,3.43832027,177.4,177.35,0.68]
[1762150088321,3.43832027,177.4,177.35,63.18]
[1762150088624,3.43832027,177.39,177.36,0.68]
[1762150089201,3.43832027,177.4,177.36,0.68]
[1762150090212,3.43832027,177.41,177.36,0.68]
[1762150090416,3.76102478,177.4,177.36,0.68]
[1762150090625,3.43832027,177.4,177.36,0.68]
[1762150090826,3.43832027,177.41,177.36,0.68]
[1762150091135,7.19937519,177.4,177.36,0.68]
[1762150091448,3.43832027,177.4,177.36,0.68]
[1762150092634,0.7,177.42,177.36,0.68]
[1762150092635,3.43832027,177.39,177.36,0.68]
[1762150093116,3.43832027,177.38,177.35,62.5]
[1762150093311,3.43832027,177.37,177.35,62.5]
[1762150093520,3.43832027,177.38,177.35,63.18]
[1762150093822,0.7,177.41,177.35,63.18]
[1762150093823,3.43832027,177.37,177.35,63.18]
[1762150094798,4.13832027,177.36,177.35,62.5]
[1762150095022,3.43832027,177.36,177.32,0.12]
[1762150095240,3.43832027,177.35,177.32,0.12]
[1762150095613,3.43832027,177.34,177.32,0.12]
[1762150096340,3.43832027,177.35,177.32,0.12]
[1762150096542,3.43832027,177.36,177.32,0.12]
[1762150097849,3.43832027,177.38,177.32,3.55832027]
[1762150098027,3.76456902,177.37,177.32,3.55832027]
[1762150098340,3.43832027,177.38,177.32,3.43832027]
[1762150098537,3.76508033,177.37,177.32,3.43832027]
[1762150098751,3.43832027,177.38,177.32,3.43832027]
[1762150099043,3.43832027,177.39,177.34,3.43832027]
[1762150099340,3.7655204,177.38,177.34,65.93832027]
[1762150099523,3.43832027,177.4,177.34,65.93832027]
[1762150099724,3.76543953,177.39,177.34,65.93832027]
[1762150099928,3.43832027,177.4,177.34,65.93832027]
[1762150100121,3.43832027,177.36,177.34,62.5]
[1762150100931,0.7,177.39,177.34,62.5]
[1762150100932,3.43832027,177.37,177.34,62.5]
[1762150101533,3.43832027,177.38,177.34,62.5]
[1762150102632,3.43832027,177.38,177.35,0.68]
[1762150102833,3.43832027,177.39,177.35,0.68]
[1762150103420,3.43832027,177.37,177.34,62.5]
[1762150103736,3.43832027,177.37,177.34,63.18]
[1762150104324,3.43832027,177.37,177.34,62.5]
[1762150104634,3.43832027,177.37,177.35,0.68]
[1762150104837,7.90567975,177.36,177.34,62.5]
[1762150105042,7.20539227,177.35,177.34,62.5]
[1762150107830,3.767072,177.35,177.34,62.5]
[1762150108026,3.767072,177.35,177.34,63.18]
[1762150108227,3.767072,177.35,177.34,62.5]
[1762150108625,7.20539227,177.35,177.34,62.5]
[1762150109322,3.767072,177.35,177.34,62.5]
[1762150111132,3.767072,177.35,177.34,63.18]
[1762150111338,3.767072,177.35,177.34,62.5]
[1762150112151,3.767072,177.35,177.31,0.68]
[1762150112329,3.43832027,177.35,177.31,0.68]
[1762150112756,3.76992781,177.34,177.31,0.68]
[1762150113050,3.43832027,177.35,177.31,0.68]
[1762150114043,0.65,177.37,177.31,0.68]
[1762150114228,3.43832027,177.35,177.31,0.68]
[1762150116960,3.43832027,177.32,177.29,62.5]
[1762150117256,3.43832027,177.3,177.29,62.5]
[1762150117555,0.69,177.33,177.29,63.16]
[1762150117734,7.20976623,177.32,177.29,63.16]
[1762150117929,3.77144596,177.31,177.3,0.66]
[1762150118330,3.43832027,177.33,177.3,0.66]
[1762150118557,3.77092461,177.32,177.3,0.66]
[1762150118730,3.77092461,177.31,177.3,0.66]
[1762150118932,3.77092461,177.31,177.29,62.5]
[1762150119138,3.43832027,177.32,177.29,62.5]
[1762150119450,3.7702972,177.31,177.29,62.5]
[1762150119659,3.43832027,177.34,177.3,0.66]
[1762150119838,3.76938903,177.33,177.3,0.66]
[1762150120038,3.76938903,177.32,177.29,62.5]
[1762150120345,3.43832027,177.33,177.3,0.66]
[1762150120532,3.76876889,177.32,177.3,0.66]
[1762150120732,4.12832027,177.32,177.29,62.5]
[1762150120960,3.43832027,177.32,177.29,63.16]
[1762150121941,3.43832027,177.33,177.3,0.66]
[1762150122261,3.76776223,177.32,177.3,0.66]
[1762150122562,2.20276906,177.32,177.3,0.66]
[1762150122858,2.20276906,177.32,177.3,63.16]
[1762150124451,2.20276906,177.33,177.3,63.16]
[1762150124752,3.76529826,177.32,177.3,63.16]
[1762150124960,2.20276906,177.33,177.3,63.16]
[1762150125133,3.76495408,177.32,177.3,62.5]
[1762150125470,2.20276906,177.34,177.31,0.66]
[1762150125673,3.76480558,177.33,177.31,0.66]
[1762150125836,2.20276906,177.36,177.31,0.66]
[1762150126033,3.76460069,177.35,177.31,2.86276906]
[1762150126364,3.76460069,177.34,177.31,2.86276906]
[1762150126535,2.20276906,177.36,177.32,0.66]
[1762150126735,3.76579127,177.35,177.32,0.66]
[1762150126955,2.20276906,177.37,177.32,0.66]
[1762150127166,3.76531837,177.36,177.32,2.86276906]
[1762150127336,2.20276906,177.37,177.32,2.86276906]
[1762150127537,3.76532223,177.36,177.33,0.66]
[1762150127848,2.20276906,177.37,177.33,0.66]
[1762150128049,3.76435083,177.36,177.33,0.66]
[1762150128370,2.89276906,177.37,177.33,0.66]
[1762150128577,5.96722476,177.36,177.33,0.66]
[1762150128741,2.20276906,177.36,177.33,63.16]
[1762150129869,2.89276906,177.37,177.34,4.70212539]
[1762150130070,3.76449956,177.36,177.34,4.70212539]
[1762150130243,2.20276906,177.38,177.35,0.66]
[1762150130443,4.70212539,177.4,177.34,67.20212539]
[1762150130444,5.96747257,177.37,177.34,67.20212539]
[1762150130669,3.76470351,177.36,177.34,67.20212539]
[1762150130857,2.20276906,177.37,177.34,67.20212539]
[1762150130858,2.20276906,177.37,177.34,67.86212539]
[1762150131042,3.76658745,177.36,177.34,67.86212539]
[1762150131381,2.20276906,177.37,177.34,63.16]
[1762150131588,3.76687065,177.36,177.34,63.16]
[1762150131778,2.20276906,177.37,177.35,3.76658745]
[1762150132072,3.76685972,177.36,177.35,3.76658745]
[1762150132650,3.76685972,177.36,177.35,4.42658745]
[1762150133265,3.76685972,177.36,177.35,3.76658745]
[1762150133470,4.70212539,177.42,177.35,74.76788884]
[1762150133667,3.76747419,177.41,177.38,2.20276906]
[1762150133865,3.76747419,177.4,177.36,0.66]
[1762150134046,6.90489445,177.46,177.39,2.20276906]
[1762150134252,3.76846805,177.45,177.41,2.20276906]
[1762150134447,3.76846805,177.45,177.4,0.66]
[1762150134448,3.76846805,177.44,177.42,2.20276906]
[1762150134776,0.89,177.48,177.43,2.20276906]
[1762150134974,3.76791463,177.47,177.43,9.10766351]
[1762150135292,3.76791463,177.46,177.44,0.66]
[1762150135506,0.89,177.48,177.44,0.66]
[1762150135707,3.76582184,177.47,177.44,0.66]
[1762150136013,3.76582184,177.46,177.44,0.66]
[1762150136167,0.89,177.48,177.44,0.66]
[1762150136371,3.76593626,177.47,177.44,0.66]
[1762150136575,0.2,177.48,177.44,0.66]
[1762150136777,0.2,177.48,177.44,2.86276906]
[1762150136778,3.76385438,177.47,177.44,2.86276906]
[1762150136987,0.2,177.48,177.44,2.86276906]
[1762150137270,3.76412682,177.47,177.45,2.86276906]
[1762150137471,3.09276906,177.48,177.43,6.90489445]
[1762150137676,0.2,177.48,177.44,2.86276906]
[1762150137880,0.2,177.48,177.47,2.20276906]
[1762150138271,0.2,177.48,177.47,2.86276906]
[1762150138472,0.2,177.48,177.47,2.91880227]
[1762150138700,0.2,177.48,177.47,5.12157133]
[1762150139494,0.2,177.48,177.47,2.91880227]
[1762150139993,0.2,177.48,177.47,5.12157133]
[1762150142198,0.2,177.48,177.47,2.91880227]
[1762150142581,0.2,177.48,177.47,10.75632649]
[1762150143199,0.2,177.48,177.47,8.55355743]
[1762150143399,0.2,177.5,177.49,64.30276906]
[1762150143711,0.2,177.5,177.49,64.86618108]
[1762150143890,0.2,177.5,177.49,65.52618108]
[1762150144088,0.2,177.5,177.49,71.16030131]
[1762150144294,0.2,177.5,177.49,91.75230131]
[1762150144992,0.2,177.5,177.49,85.55476906]
[1762150145485,0.2,177.5,177.49,91.18888929]
[1762150145691,0.2,177.5,177.49,85.61041967]
[1762150146081,0.2,177.5,177.49,88.37660075]
[1762150146282,0.2,177.5,177.49,94.01072098]
[1762150146488,0.2,177.5,177.49,103.79954867]
[1762150146686,0.2,177.5,177.49,94.01072098]
[1762150147617,0.2,177.5,177.49,88.37660075]
[1762150148289,0.2,177.5,177.49,87.81318873]
[1762150148596,0.2,177.5,177.49,67.22118873]
[1762150148809,0.2,177.5,177.49,65.01841967]
[1762150149314,0.2,177.5,177.49,2.25841967]
[1762150149806,0.2,177.5,177.49,2.90841967]
[1762150150180,0.2,177.5,177.49,2.25841967]
[1762150151807,0.92,177.5,177.49,2.25841967]
[1762150152312,9.78882769,177.49,177.41,2.85276906]
[1762150152505,2.20276906,177.46,177.45,2.25944022]
[1762150153094,2.92276906,177.46,177.45,2.25944022]
[1762150153496,2.20276906,177.47,177.45,2.25944022]
[1762150153796,2.20276906,177.48,177.45,2.90944022]
[1762150154007,2.20276906,177.48,177.45,2.25944022]
[1762150154190,2.92276906,177.47,177.45,2.25944022]
[1762150155505,2.20276906,177.47,177.45,2.25944022]
[1762150156006,2.92276906,177.48,177.45,2.25944022]
[1762150156196,2.20276906,177.47,177.45,2.25944022]
[1762150156394,2.20276906,177.46,177.45,2.25944022]
[1762150156606,2.92276906,177.46,177.4,0.65]
[1762150156792,2.20276906,177.45,177.4,2.90956785]
[1762150156984,2.20276906,177.45,177.4,5.11233691]
[1762150157188,2.92276906,177.45,177.41,0.65]
[1762150157808,2.92276906,177.45,177.42,9.98882769]
[1762150158308,2.92276906,177.44,177.42,9.98882769]
[1762150158714,2.20276906,177.48,177.42,9.98882769]
[1762150158715,2.20276906,177.43,177.42,9.98882769]
[1762150158892,0.72,177.43,177.42,9.98882769]
[1762150159825,2.20276906,177.44,177.42,9.98882769]
[1762150160017,2.92276906,177.44,177.42,9.98882769]
[1762150160605,0.72,177.43,177.42,9.98882769]
[1762150160843,2.92276906,177.43,177.35,2.20276906]
[1762150161140,2.20276906,177.38,177.37,5.63444095]
[1762150161501,2.92276906,177.38,177.28,0.56407942]
[1762150161702,2.20276906,177.36,177.33,5.63444095]
[1762150162515,0.72,177.37,177.33,5.63444095]
[1762150162831,2.92276906,177.37,177.33,6.28444095]
[1762150163523,2.20276906,177.39,177.34,2.85276906]
[1762150163836,2.92276906,177.39,177.34,0.65]
[1762150164044,0.72,177.38,177.34,0.65]
[1762150164332,2.92276906,177.38,177.34,0.65]
[1762150164650,2.20276906,177.38,177.34,0.65]
[1762150165225,2.20276906,177.38,177.35,7.83721001]
[1762150165432,2.92276906,177.38,177.35,7.83721001]
[1762150166757,2.20276906,177.38,177.35,69.93721001]
[1762150166945,2.20276906,177.36,177.35,69.93721001]
[1762150167121,2.20276906,177.36,177.35,62.1]
[1762150167316,2.90276906,177.36,177.34,16.95633743]
[1762150167534,12.69159675,177.35,177.27,0.86]
[1762150167839,2.20276906,177.31,177.3,9.78882769]
[1762150168145,2.20276906,177.32,177.3,9.78882769]
[1762150171129,2.90276906,177.33,177.3,9.78882769]
[1762150171531,2.90276906,177.32,177.3,9.78882769]
[1762150171739,2.20276906,177.32,177.3,9.78882769]
[1762150172626,2.20276906,177.32,177.3,71.88882769]
[1762150172943,20.592,177.36,177.27,0.2]
[1762150172944,23.49476906,177.31,177.27,0.2]
[1762150173159,2.20276906,177.28,177.27,0.2]
[1762150173534,2.90276906,177.28,177.27,17.16496734]
[1762150176173,12.69159675,177.28,177.27,17.16496734]
[1762150177281,12.69159675,177.28,177.27,0.2]
[1762150179268,33.28359675,177.28,177.27,0.2]
[1762150179643,38.92439097,177.28,177.27,0.2]
[1762150180139,29.13556328,177.28,177.26,0.2]
[1762150180340,5.64143066,177.26,177.2,0.2]
[1762150180550,2.20276906,177.21,177.2,0.2]
[1762150181061,2.91276906,177.21,177.2,0.2]
[1762150181777,25.70753812,177.21,177.2,0.2]
[1762150181973,32.3158453,177.21,177.19,0.2]
[1762150182199,2.91276906,177.2,177.19,0.2]
[1762150182362,20.592,177.18,177.17,9.94935966]
[1762150182702,20.592,177.17,177.15,0.1]
[1762150182869,22.79476906,177.17,177.15,0.1]
[1762150183188,23.10476906,177.17,177.15,0.1]
[1762150183658,32.89359675,177.17,177.15,0.1]
[1762150184560,34.14058925,177.17,177.15,0.1]
[1762150185173,33.83058925,177.17,177.15,0.1]
[1762150185885,34.14058925,177.17,177.15,0.1]
[1762150186064,33.83058925,177.17,177.15,0.1]
[1762150187376,34.14058925,177.17,177.15,0.1]
[1762150191179,33.83058925,177.17,177.15,0.1]
[1762150192783,30.38082769,177.17,177.15,0.1]
[1762150192988,33.83058925,177.17,177.15,0.1]
[1762150193567,34.14058925,177.17,177.15,0.1]
[1762150194467,43.47323729,177.17,177.15,0.1]
[1762150194697,33.6844096,177.17,177.15,0.1]
[1762150194866,7.44811317,177.16,177.15,0.1]
[1762150195066,17.23694086,177.16,177.15,0.1]
[1762150195381,16.92816284,177.16,177.15,0.1]
[1762150199208,22.57277787,177.16,177.15,0.1]
[1762150199501,22.88277787,177.16,177.15,0.1]
[1762150201019,17.79607557,177.16,177.13,0.2]
[1762150201307,24.04176156,177.14,177.13,0.2]
[1762150201461,27.73133515,177.14,177.13,0.2]
[1762150201669,32.74346054,177.14,177.13,0.2]
[1762150201868,32.74346054,177.14,177.08,0.1]
[1762150201869,0.31,177.13,177.08,0.1]
[1762150202164,24.04176156,177.09,177.08,0.1]
[1762150202364,31.18109671,177.09,177.0,0.1]
[1762150202572,37.75834606,177.06,177.0,0.1]
[1762150202783,35.80011665,177.06,177.0,0.1]
[1762150202978,13.23858925,177.02,177.0,0.1]
[1762150203183,16.92816284,177.02,177.0,0.1]
[1762150203695,16.92816284,177.02,177.01,0.75]
[1762150203996,16.92816284,177.02,177.01,0.1]